[Event "*** Qualifier 4: Titled Tuesday 3|2 Blitz"]
[Site "Chess.com"]
[Date "2017.04.25"]
[Round "4"]
[White "NMJeevanK"]
[Black "nonscitis"]
[Result "1-0"]
[WhiteElo "2401"]
[BlackElo "2328"]
[TimeControl "180+2"]
[EndTime "13:51:31 PDT"]
[Termination "NMJeevanK won on time"]

1. e4 {[%clk 0:03:02]} 1... c6 {[%clk 0:02:59.5]} 2. d4 {[%clk 0:03:03]} 2... c5
{[%clk 0:03:01.4]} 3. Nf3 {[%clk 0:03:03.2]} 3... cxd4 {[%clk 0:02:59.6]} 4.
Nxd4 {[%clk 0:03:05.1]} 4... a6 {[%clk 0:02:31.2]} 5. Bd3 {[%clk 0:03:05.8]}
5... g6 {[%clk 0:02:28]} 6. O-O {[%clk 0:03:06.9]} 6... Bg7 {[%clk 0:02:22.3]}
7. Nb3 {[%clk 0:03:08.8]} 7... Nc6 {[%clk 0:02:21.8]} 8. c3 {[%clk 0:03:09.2]}
8... Nf6 {[%clk 0:02:22.2]} 9. f4 {[%clk 0:03:08.4]} 9... O-O {[%clk 0:02:20.8]}
10. e5 {[%clk 0:03:07.6]} 10... Nd5 {[%clk 0:02:20]} 11. Bxg6 {[%clk 0:03:07.7]}
11... hxg6 {[%clk 0:01:59.8]} 12. Qxd5 {[%clk 0:03:08.6]} 12... d6 {[%clk
0:02:00.7]} 13. exd6 {[%clk 0:03:05.4]} 13... exd6 {[%clk 0:01:56]} 14. Qf3
{[%clk 0:03:04.5]} 14... Be6 {[%clk 0:01:53.2]} 15. N1d2 {[%clk 0:03:04.3]}
15... Rc8 {[%clk 0:01:50.7]} 16. Ne4 {[%clk 0:03:04.2]} 16... d5 {[%clk
0:01:31]} 17. Ng5 {[%clk 0:03:03.1]} 17... Bf5 {[%clk 0:01:27.3]} 18. g4 {[%clk
0:03:00]} 18... f6 {[%clk 0:01:27.7]} 19. Nh7 {[%clk 0:02:35.6]} 19... Kxh7
{[%clk 0:00:48.3]} 20. gxf5 {[%clk 0:02:34]} 20... gxf5 {[%clk 0:00:46.2]} 21.
Qh5+ {[%clk 0:02:32.5]} 21... Kg8 {[%clk 0:00:44.4]} 22. Rf3 {[%clk 0:02:29.9]}
22... d4 {[%clk 0:00:40.3]} 23. Qxf5 {[%clk 0:02:20.8]} 23... dxc3 {[%clk
0:00:38.3]} 24. bxc3 {[%clk 0:02:20.1]} 24... Qd1+ {[%clk 0:00:36.8]} 25. Rf1
{[%clk 0:02:20.7]} 25... Qd6 {[%clk 0:00:34.6]} 26. Be3 {[%clk 0:02:17.2]} 26...
Rfe8 {[%clk 0:00:35.1]} 27. Rad1 {[%clk 0:01:50]} 27... Qe6 {[%clk 0:00:18.3]}
28. Qxe6+ {[%clk 0:01:51.1]} 28... Rxe6 {[%clk 0:00:20.1]} 29. Rf3 {[%clk
0:01:52.5]} 29... f5 {[%clk 0:00:20.5]} 30. Rd7 {[%clk 0:01:50.5]} 30... Rce8
{[%clk 0:00:19.5]} 31. Bf2 {[%clk 0:01:45.3]} 31... R6e7 {[%clk 0:00:19.4]} 32.
Rd5 {[%clk 0:01:43.4]} 32... Rf7 {[%clk 0:00:17]} 33. Rg3 {[%clk 0:01:44.8]}
33... Kh7 {[%clk 0:00:17.3]} 34. Rg5 {[%clk 0:01:41.7]} 34... Ne7 {[%clk
0:00:17.1]} 35. Rd7 {[%clk 0:01:42.1]} 35... Ref8 {[%clk 0:00:14.6]} 36. Bc5
{[%clk 0:01:41.6]} 36... Ng6 {[%clk 0:00:14.2]} 37. Bxf8 {[%clk 0:01:41.2]}
37... Rxd7 {[%clk 0:00:14.4]} 38. Bb4 {[%clk 0:01:33.3]} 38... Nxf4 {[%clk
0:00:13.2]} 39. Rxf5 {[%clk 0:01:33.2]} 39... Ng6 {[%clk 0:00:13.7]} 40. h4
{[%clk 0:01:25.3]} 40... Rd1+ {[%clk 0:00:11.2]} 41. Kf2 {[%clk 0:01:24.6]}
41... Rh1 {[%clk 0:00:10.6]} 42. h5 {[%clk 0:01:23]} 42... Nh4 {[%clk
0:00:10.5]} 43. Rf7 {[%clk 0:01:22.1]} 43... Kh6 {[%clk 0:00:10.4]} 44. Rxb7
{[%clk 0:01:22.7]} 44... Rh2+ {[%clk 0:00:10.8]} 45. Ke3 {[%clk 0:01:15.3]}
45... Rxa2 {[%clk 0:00:10.2]} 46. Nd2 {[%clk 0:00:56.3]} 46... Kxh5 {[%clk
0:00:10.2]} 47. Ne4 {[%clk 0:00:48.1]} 47... Bh6+ {[%clk 0:00:10.5]} 48. Kd4
{[%clk 0:00:45.7]} 48... Nf3+ {[%clk 0:00:09.7]} 49. Kd5 {[%clk 0:00:42.4]}
49... Bg5 {[%clk 0:00:09.2]} 50. Rh7+ {[%clk 0:00:41.7]} 50... Kg6 {[%clk
0:00:08.5]} 51. Ra7 {[%clk 0:00:43.3]} 51... Kh5 {[%clk 0:00:08.1]} 52. Ra8
{[%clk 0:00:43.6]} 52... Bf4 {[%clk 0:00:07.8]} 53. Nc5 {[%clk 0:00:42.4]} 53...
Ng5 {[%clk 0:00:04.6]} 54. Nxa6 {[%clk 0:00:39.2]} 54... Rd2+ {[%clk 0:00:05.2]}
55. Kc4 {[%clk 0:00:39.8]} 55... Ne4 {[%clk 0:00:05.4]} 56. Rf8 {[%clk
0:00:35.1]} 56... Kg4 {[%clk 0:00:04.4]} 57. Kb3 {[%clk 0:00:31.5]} 57... Rd3
{[%clk 0:00:03.9]} 58. Rg8+ {[%clk 0:00:32.3]} 58... Kf5 {[%clk 0:00:03.7]} 59.
Rf8+ {[%clk 0:00:33.3]} 59... Kg4 {[%clk 0:00:04.5]} 60. Kc4 {[%clk 0:00:32.4]}
60... Rh3 {[%clk 0:00:04.9]} 61. Rg8+ {[%clk 0:00:30.4]} 61... Kf5 {[%clk
0:00:05.4]} 62. Rg1 {[%clk 0:00:24.3]} 62... Nd2+ {[%clk 0:00:06]} 63. Kb5
{[%clk 0:00:24.1]} 63... Ne4 {[%clk 0:00:05.6]} 64. c4 {[%clk 0:00:22.7]} 64...
Rb3 {[%clk 0:00:06.4]} 65. Ka4 {[%clk 0:00:21.4]} 65... Rb2 {[%clk 0:00:06.6]}
66. Rg8 {[%clk 0:00:18.8]} 66... Ke6 {[%clk 0:00:06.6]} 67. Re8+ {[%clk
0:00:19.5]} 67... Kf5 {[%clk 0:00:07.4]} 68. Rf8+ {[%clk 0:00:20.8]} 68... Kg4
{[%clk 0:00:06.9]} 69. c5 {[%clk 0:00:22.2]} 69... Be3 {[%clk 0:00:04.4]} 70. c6
{[%clk 0:00:21.2]} 70... Bb6 {[%clk 0:00:04.7]} 71. Rb8 {[%clk 0:00:20.3]} 71...
Kf5 {[%clk 0:00:02.4]} 72. Rxb6 {[%clk 0:00:21]} 72... Nc3+ {[%clk 0:00:03.7]}
73. Ka3 {[%clk 0:00:18.3]} 73... Rb1 {[%clk 0:00:04.7]} 74. c7 {[%clk
0:00:13.3]} 74... Nb5+ {[%clk 0:00:05.5]} 75. Rxb5+ {[%clk 0:00:14.4]} 75... Ke6
{[%clk 0:00:05.4]} 76. c8=Q+ {[%clk 0:00:15.5]} 1-0

[Event "*** Qualifier 4: Titled Tuesday 3|2 Blitz"]
[Site "Chess.com"]
[Date "2017.04.25"]
[Round "4"]
[White "feigelag"]
[Black "Hikaru"]
[Result "0-1"]
[WhiteElo "2290"]
[BlackElo "2948"]
[TimeControl "180+2"]
[EndTime "13:52:10 PDT"]
[Termination "Hikaru won by checkmate"]

1. e4 {[%clk 0:03:02]} 1... e6 {[%clk 0:02:59.2]} 2. Nc3 {[%clk 0:02:58.9]} 2...
d5 {[%clk 0:03:01.1]} 3. Nf3 {[%clk 0:03:00.5]} 3... Nf6 {[%clk 0:02:58.2]} 4.
e5 {[%clk 0:02:57.3]} 4... Nfd7 {[%clk 0:02:47.6]} 5. d4 {[%clk 0:02:54.9]} 5...
c5 {[%clk 0:02:48.8]} 6. dxc5 {[%clk 0:02:54.4]} 6... Nc6 {[%clk 0:02:49]} 7.
Bf4 {[%clk 0:02:53.4]} 7... Be7 {[%clk 0:02:50]} 8. Bd3 {[%clk 0:02:53.7]} 8...
Nxc5 {[%clk 0:02:51]} 9. O-O {[%clk 0:02:54.3]} 9... g5 {[%clk 0:02:52.3]} 10.
Be3 {[%clk 0:02:51.3]} 10... Nxd3 {[%clk 0:02:52.4]} 11. Qxd3 {[%clk 0:02:51.2]}
11... g4 {[%clk 0:02:53.9]} 12. Nd4 {[%clk 0:02:45.5]} 12... Nxe5 {[%clk
0:02:50.5]} 13. Qb5+ {[%clk 0:02:44.9]} 13... Bd7 {[%clk 0:02:45.9]} 14. Qe2
{[%clk 0:02:44.6]} 14... Ng6 {[%clk 0:02:33.5]} 15. f4 {[%clk 0:02:37.1]} 15...
gxf3 {[%clk 0:02:27.3]} 16. Rxf3 {[%clk 0:02:33.1]} 16... f5 {[%clk 0:02:06.7]}
17. Bf2 {[%clk 0:02:26.8]} 17... Qc8 {[%clk 0:01:51.8]} 18. Re1 {[%clk
0:02:25.5]} 18... Kf7 {[%clk 0:01:50.5]} 19. g4 {[%clk 0:02:20.1]} 19... f4
{[%clk 0:01:46.5]} 20. h4 {[%clk 0:02:15]} 20... h5 {[%clk 0:01:31.8]} 21. Nxd5
{[%clk 0:01:53.5]} 21... exd5 {[%clk 0:01:22.2]} 22. Rxf4+ {[%clk 0:01:51.2]}
22... Kg8 {[%clk 0:01:17.6]} 23. Rf5 {[%clk 0:01:48.3]} 23... Bxf5 {[%clk
0:01:06.9]} 24. gxf5 {[%clk 0:01:50.2]} 24... Bf6 {[%clk 0:01:03.4]} 25. fxg6
{[%clk 0:01:48.8]} 25... Qg4+ {[%clk 0:01:05]} 26. Qxg4 {[%clk 0:01:44.5]} 26...
hxg4 {[%clk 0:01:06.9]} 27. Kg2 {[%clk 0:01:20]} 27... Kg7 {[%clk 0:00:51.1]}
28. Ne6+ {[%clk 0:01:06.4]} 28... Kxg6 {[%clk 0:00:47.6]} 29. Nf4+ {[%clk
0:01:07.5]} 29... Kf7 {[%clk 0:00:49.1]} 30. Nxd5 {[%clk 0:01:08.4]} 30... Bxh4
{[%clk 0:00:49.9]} 31. Bxh4 {[%clk 0:01:06.8]} 31... Rxh4 {[%clk 0:00:51.8]} 32.
Re7+ {[%clk 0:01:07.7]} 32... Kg6 {[%clk 0:00:52.1]} 33. Kg3 {[%clk 0:01:07.5]}
33... Rah8 {[%clk 0:00:50.7]} 34. Nf4+ {[%clk 0:01:08]} 34... Kf6 {[%clk
0:00:49.6]} 35. Rxb7 {[%clk 0:01:08.3]} 35... Rh1 {[%clk 0:00:49.4]} 36. Rxa7
{[%clk 0:01:05.6]} 36... Rg1+ {[%clk 0:00:50.2]} 37. Kf2 {[%clk 0:01:06.5]}
37... Rc1 {[%clk 0:00:51.8]} 38. Kg3 {[%clk 0:01:05.1]} 38... Rxc2 {[%clk
0:00:46.1]} 39. Ra6+ {[%clk 0:01:03.1]} 39... Kf5 {[%clk 0:00:43.6]} 40. Ra5+
{[%clk 0:01:04.1]} 40... Kf6 {[%clk 0:00:43.2]} 41. Nd5+ {[%clk 0:01:00.2]}
41... Ke6 {[%clk 0:00:41.9]} 42. Nf4+ {[%clk 0:01:00.2]} 42... Kd6 {[%clk
0:00:43.2]} 43. b4 {[%clk 0:00:53.9]} 43... Rg8 {[%clk 0:00:42.9]} 44. Rd5+
{[%clk 0:00:51.6]} 44... Kc6 {[%clk 0:00:39.4]} 45. b5+ {[%clk 0:00:52.8]} 45...
Kb6 {[%clk 0:00:40.1]} 46. a4 {[%clk 0:00:52.8]} 46... Ra2 {[%clk 0:00:38.5]}
47. Rd6+ {[%clk 0:00:46]} 47... Kb7 {[%clk 0:00:36.6]} 48. Rg6 {[%clk
0:00:33.6]} 48... Rc8 {[%clk 0:00:27.7]} 49. Rg7+ {[%clk 0:00:32.8]} 49... Kb8
{[%clk 0:00:28.4]} 50. Rg6 {[%clk 0:00:28.9]} 50... Rc3+ {[%clk 0:00:29.2]} 51.
Kxg4 {[%clk 0:00:29.3]} 51... Rxa4 {[%clk 0:00:30.8]} 52. Rb6+ {[%clk 0:00:30]}
52... Kc7 {[%clk 0:00:30.4]} 53. Rc6+ {[%clk 0:00:30.4]} 53... Rxc6 {[%clk
0:00:32]} 54. bxc6 {[%clk 0:00:32.2]} 54... Kxc6 {[%clk 0:00:33.9]} 55. Kf5
{[%clk 0:00:30.5]} 55... Kd6 {[%clk 0:00:35.8]} 56. Kg5 {[%clk 0:00:31]} 56...
Ke5 {[%clk 0:00:36.4]} 57. Ng6+ {[%clk 0:00:31.6]} 57... Ke4 {[%clk 0:00:37.6]}
58. Kf6 {[%clk 0:00:31.1]} 58... Ra5 {[%clk 0:00:39.5]} 59. Ne7 {[%clk
0:00:25.8]} 59... Ra6+ {[%clk 0:00:41.4]} 60. Kf7 {[%clk 0:00:26.7]} 60... Ke5
{[%clk 0:00:42.9]} 61. Ng6+ {[%clk 0:00:26]} 61... Kf5 {[%clk 0:00:44.2]} 62.
Ne7+ {[%clk 0:00:27.4]} 62... Kg5 {[%clk 0:00:46.1]} 63. Nd5 {[%clk 0:00:24.2]}
63... Rd6 {[%clk 0:00:46.7]} 64. Ne7 {[%clk 0:00:20.7]} 64... Kf4 {[%clk
0:00:43.7]} 65. Ng6+ {[%clk 0:00:21.1]} 65... Ke4 {[%clk 0:00:45.2]} 66. Ne7
{[%clk 0:00:22.4]} 66... Ra6 {[%clk 0:00:46.9]} 67. Ng6 {[%clk 0:00:23]} 67...
Kf5 {[%clk 0:00:46.2]} 68. Ne7+ {[%clk 0:00:24.2]} 68... Ke5 {[%clk 0:00:47.3]}
69. Ng6+ {[%clk 0:00:25.1]} 69... Kd4 {[%clk 0:00:49.2]} 70. Ne7 {[%clk
0:00:26.1]} 70... Ke4 {[%clk 0:00:50.1]} 71. Ng6 {[%clk 0:00:25.7]} 71... Rb6
{[%clk 0:00:49.3]} 72. Ne7 {[%clk 0:00:26.5]} 72... Rb4 {[%clk 0:00:49.8]} 73.
Ng6 {[%clk 0:00:26.8]} 73... Rb7+ {[%clk 0:00:50.4]} 74. Ne7 {[%clk 0:00:26.4]}
74... Ke5 {[%clk 0:00:52.3]} 75. Kf8 {[%clk 0:00:23.7]} 75... Ke6 {[%clk
0:00:53.4]} 76. Ng8 {[%clk 0:00:22.7]} 76... Rf7+ {[%clk 0:00:32.2]} 77. Ke8
{[%clk 0:00:22.2]} 77... Rf1 {[%clk 0:00:34.1]} 78. Ne7 {[%clk 0:00:16.2]} 78...
Rh1 {[%clk 0:00:31.2]} 79. Kf8 {[%clk 0:00:14.9]} 79... Ra1 {[%clk 0:00:30.3]}
80. Ng8 {[%clk 0:00:14.6]} 80... Rf1+ {[%clk 0:00:30.1]} 81. Kg7 {[%clk
0:00:14.3]} 81... Rg1+ {[%clk 0:00:31.2]} 82. Kh7 {[%clk 0:00:13.9]} 82... Rg2
{[%clk 0:00:27.1]} 83. Nh6 {[%clk 0:00:11.3]} 83... Ke7 {[%clk 0:00:28]} 84.
Ng8+ {[%clk 0:00:11.7]} 84... Kf8 {[%clk 0:00:29.3]} 85. Nh6 {[%clk 0:00:10.5]}
85... Rg7+ {[%clk 0:00:30.9]} 86. Kh8 {[%clk 0:00:11.4]} 86... Ra7 {[%clk
0:00:32.8]} 87. Ng8 {[%clk 0:00:11.3]} 87... Kf7 {[%clk 0:00:34.2]} 88. Nh6+
{[%clk 0:00:12]} 88... Kg6 {[%clk 0:00:35.6]} 89. Ng8 {[%clk 0:00:11.6]} 89...
Rh7# {[%clk 0:00:35]} 0-1

[Event "*** Qualifier 4: Titled Tuesday 3|2 Blitz"]
[Site "Chess.com"]
[Date "2017.04.25"]
[Round "5"]
[White "GGuseinov"]
[Black "maciek_92"]
[Result "1-0"]
[WhiteElo "2712"]
[BlackElo "2518"]
[TimeControl "180+2"]
[EndTime "13:57:13 PDT"]
[Termination "GGuseinov won by resignation"]

1. e4 {[%clk 0:03:02]} 1... c5 {[%clk 0:02:59.6]} 2. Nf3 {[%clk 0:03:00.7]} 2...
Nc6 {[%clk 0:03:01.1]} 3. Nc3 {[%clk 0:03:01.5]} 3... e6 {[%clk 0:03:00.8]} 4.
d4 {[%clk 0:03:02.5]} 4... cxd4 {[%clk 0:03:02.7]} 5. Nxd4 {[%clk 0:03:03.6]}
5... a6 {[%clk 0:03:04.3]} 6. g3 {[%clk 0:03:02.6]} 6... Nf6 {[%clk 0:03:00.4]}
7. Bg2 {[%clk 0:03:03.2]} 7... d6 {[%clk 0:02:59.6]} 8. O-O {[%clk 0:03:04]}
8... Be7 {[%clk 0:02:59.6]} 9. Nxc6 {[%clk 0:03:00.5]} 9... bxc6 {[%clk
0:03:00.1]} 10. e5 {[%clk 0:03:01.8]} 10... Nd5 {[%clk 0:03:00.8]} 11. exd6
{[%clk 0:03:02.9]} 11... Bxd6 {[%clk 0:03:02]} 12. Ne4 {[%clk 0:03:03.6]} 12...
Be7 {[%clk 0:02:59.6]} 13. c4 {[%clk 0:03:04]} 13... Nb6 {[%clk 0:02:49.4]} 14.
Qxd8+ {[%clk 0:03:04.4]} 14... Kxd8 {[%clk 0:02:50.5]} 15. Rd1+ {[%clk
0:03:03.4]} 15... Bd7 {[%clk 0:02:48.7]} 16. b3 {[%clk 0:02:57.6]} 16... f6
{[%clk 0:02:33.3]} 17. Be3 {[%clk 0:02:57.8]} 17... Rb8 {[%clk 0:02:25.1]} 18.
Nc5 {[%clk 0:02:55.3]} 18... Kc7 {[%clk 0:02:16.2]} 1-0

[Event "*** Qualifier 4: Titled Tuesday 3|2 Blitz"]
[Site "Chess.com"]
[Date "2017.04.25"]
[Round "5"]
[White "Quiet_Desperation"]
[Black "Outsmiter"]
[Result "0-1"]
[WhiteElo "2124"]
[BlackElo "2047"]
[TimeControl "180+2"]
[EndTime "13:58:04 PDT"]
[Termination "Outsmiter won by resignation"]

1. e4 {[%clk 0:03:01.9]} 1... d6 {[%clk 0:03:00.9]} 2. d4 {[%clk 0:03:01.9]}
2... Nf6 {[%clk 0:03:01.6]} 3. Nc3 {[%clk 0:03:03.2]} 3... g6 {[%clk 0:03:02.9]}
4. Be3 {[%clk 0:03:04]} 4... Bg7 {[%clk 0:03:03.4]} 5. f3 {[%clk 0:03:05.6]}
5... O-O {[%clk 0:03:04]} 6. Qd2 {[%clk 0:03:07.3]} 6... a6 {[%clk 0:03:05.1]}
7. O-O-O {[%clk 0:03:08.9]} 7... b5 {[%clk 0:03:06]} 8. h4 {[%clk 0:03:10.4]}
8... h5 {[%clk 0:03:03.4]} 9. Bh6 {[%clk 0:03:10.5]} 9... Bb7 {[%clk 0:02:57.7]}
10. Bd3 {[%clk 0:03:02.9]} 10... e5 {[%clk 0:02:54.4]} 11. d5 {[%clk 0:03:02.6]}
11... Nbd7 {[%clk 0:02:52.7]} 12. Nh3 {[%clk 0:03:01.9]} 12... Nc5 {[%clk
0:02:49.9]} 13. Rdg1 {[%clk 0:03:02.8]} 13... c6 {[%clk 0:02:41.3]} 14. dxc6
{[%clk 0:03:03]} 14... Bxc6 {[%clk 0:02:41.8]} 15. Nf2 {[%clk 0:03:04.3]} 15...
b4 {[%clk 0:02:36.4]} 16. Ne2 {[%clk 0:02:56.9]} 16... Qa5 {[%clk 0:02:36.5]}
17. Kb1 {[%clk 0:02:56.2]} 17... Na4 {[%clk 0:02:24.3]} 18. g4 {[%clk
0:02:53.1]} 18... d5 {[%clk 0:02:20.9]} 19. gxh5 {[%clk 0:02:51]} 19... Nxh5
{[%clk 0:02:21.3]} 20. Bxg7 {[%clk 0:02:46.1]} 20... Kxg7 {[%clk 0:02:23.2]} 21.
Ng3 {[%clk 0:02:46]} 21... Nf4 {[%clk 0:02:22.6]} 22. Nh3 {[%clk 0:02:44.3]}
22... Nc3+ {[%clk 0:02:17.1]} 23. bxc3 {[%clk 0:02:40.9]} 23... bxc3 {[%clk
0:02:19]} 24. Qc1 {[%clk 0:02:35.2]} 24... Rfb8+ {[%clk 0:02:11.2]} 25. Ka1
{[%clk 0:02:36.4]} 25... Rb2 {[%clk 0:02:10.6]} 0-1

[Event "*** Qualifier 4: Titled Tuesday 3|2 Blitz"]
[Site "Chess.com"]
[Date "2017.04.25"]
[Round "5"]
[White "LawrenceTrent"]
[Black "Iball95"]
[Result "0-1"]
[WhiteElo "2391"]
[BlackElo "2525"]
[TimeControl "180+2"]
[EndTime "13:58:42 PDT"]
[Termination "Iball95 won by resignation"]

1. e4 {[%clk 0:03:02]} 1... c6 {[%clk 0:03:00.6]} 2. Ne2 {[%clk 0:03:02.3]} 2...
d5 {[%clk 0:02:59.2]} 3. e5 {[%clk 0:03:03.6]} 3... c5 {[%clk 0:03:00.6]} 4. d4
{[%clk 0:03:03.4]} 4... Nc6 {[%clk 0:03:00.7]} 5. c3 {[%clk 0:03:04.8]} 5...
cxd4 {[%clk 0:02:54.3]} 6. cxd4 {[%clk 0:03:03.6]} 6... Bf5 {[%clk 0:02:54.8]}
7. Nbc3 {[%clk 0:02:58.9]} 7... e6 {[%clk 0:02:55.6]} 8. Ng3 {[%clk 0:03:00.2]}
8... Bg6 {[%clk 0:02:56.8]} 9. h4 {[%clk 0:02:56.4]} 9... h6 {[%clk 0:02:56.6]}
10. h5 {[%clk 0:02:57.4]} 10... Bh7 {[%clk 0:02:57.8]} 11. Be3 {[%clk
0:02:58.8]} 11... Nge7 {[%clk 0:02:55.9]} 12. Bd3 {[%clk 0:02:52.9]} 12... Bxd3
{[%clk 0:02:47.5]} 13. Qxd3 {[%clk 0:02:54.1]} 13... Nc8 {[%clk 0:02:48.1]} 14.
O-O {[%clk 0:02:54.3]} 14... Nb6 {[%clk 0:02:45.2]} 15. f4 {[%clk 0:02:55.7]}
15... Nc4 {[%clk 0:02:42.3]} 16. b3 {[%clk 0:02:42.4]} 16... Nxe3 {[%clk
0:02:41.7]} 17. Qxe3 {[%clk 0:02:43.7]} 17... Rc8 {[%clk 0:02:36.6]} 18. Nce2
{[%clk 0:02:38.6]} 18... Qh4 {[%clk 0:02:27.5]} 19. Rac1 {[%clk 0:02:31.8]}
19... Ba3 {[%clk 0:02:26.8]} 20. Rc2 {[%clk 0:02:28.4]} 20... O-O {[%clk
0:02:24.5]} 21. Kf2 {[%clk 0:02:21.4]} 21... Nxe5 {[%clk 0:02:16.5]} 22. dxe5
{[%clk 0:01:52.8]} 22... Rxc2 {[%clk 0:02:15.9]} 23. Qxa7 {[%clk 0:01:46.7]}
23... Bc5+ {[%clk 0:02:15.7]} 0-1

[Event "*** Qualifier 4: Titled Tuesday 3|2 Blitz"]
[Site "Chess.com"]
[Date "2017.04.25"]
[Round "5"]
[White "GMOratovsky"]
[Black "Gordima"]
[Result "0-1"]
[WhiteElo "2326"]
[BlackElo "2504"]
[TimeControl "180+2"]
[EndTime "13:59:10 PDT"]
[Termination "Gordima won by resignation"]

1. e4 {[%clk 0:03:02]} 1... g6 {[%clk 0:02:59.9]} 2. d4 {[%clk 0:03:02]} 2...
Bg7 {[%clk 0:03:01.2]} 3. Nf3 {[%clk 0:03:00.6]} 3... d6 {[%clk 0:03:01.8]} 4.
Bd3 {[%clk 0:02:54.3]} 4... Nf6 {[%clk 0:03:01.7]} 5. Qe2 {[%clk 0:02:53.4]}
5... O-O {[%clk 0:03:02.5]} 6. h3 {[%clk 0:02:50]} 6... Nc6 {[%clk 0:03:02.1]}
7. c3 {[%clk 0:02:47.1]} 7... a6 {[%clk 0:02:54.8]} 8. Nbd2 {[%clk 0:02:45.9]}
8... Nh5 {[%clk 0:02:51.4]} 9. Nf1 {[%clk 0:02:42.1]} 9... e5 {[%clk 0:02:52.5]}
10. d5 {[%clk 0:02:36.7]} 10... Ne7 {[%clk 0:02:53.7]} 11. Ng3 {[%clk
0:02:38.2]} 11... Nf4 {[%clk 0:02:53.6]} 12. Qf1 {[%clk 0:02:25.5]} 12... c6
{[%clk 0:02:54.1]} 13. dxc6 {[%clk 0:02:16.3]} 13... bxc6 {[%clk 0:02:55.4]} 14.
Bxf4 {[%clk 0:02:17.3]} 14... exf4 {[%clk 0:02:56.3]} 15. Ne2 {[%clk 0:02:17.9]}
15... Qb6 {[%clk 0:02:56.1]} 16. O-O-O {[%clk 0:01:58.6]} 16... Rb8 {[%clk
0:02:55.9]} 17. Rd2 {[%clk 0:01:57.5]} 17... Qa5 {[%clk 0:02:53.2]} 18. a3
{[%clk 0:01:54.5]} 18... f5 {[%clk 0:02:19]} 19. exf5 {[%clk 0:01:42.9]} 19...
Nxf5 {[%clk 0:02:07.6]} 20. Bxf5 {[%clk 0:01:34.6]} 20... Bxf5 {[%clk
0:02:07.9]} 21. Ned4 {[%clk 0:01:36.1]} 21... Qxc3+ {[%clk 0:02:05.8]} 0-1

[Event "*** Qualifier 4: Titled Tuesday 3|2 Blitz"]
[Site "Chess.com"]
[Date "2017.04.25"]
[Round "5"]
[White "Alex_Molchanov"]
[Black "jcgs1030"]
[Result "1-0"]
[WhiteElo "2432"]
[BlackElo "2264"]
[TimeControl "180+2"]
[EndTime "13:59:29 PDT"]
[Termination "Alex_Molchanov won by resignation"]

1. d4 {[%clk 0:03:02]} 1... Nf6 {[%clk 0:02:59]} 2. c4 {[%clk 0:03:03.2]} 2...
g6 {[%clk 0:02:57.6]} 3. Nf3 {[%clk 0:03:04.4]} 3... Bg7 {[%clk 0:02:57.8]} 4.
g3 {[%clk 0:03:05]} 4... O-O {[%clk 0:02:58.2]} 5. Bg2 {[%clk 0:03:06.6]} 5...
d5 {[%clk 0:02:59.7]} 6. O-O {[%clk 0:03:07.4]} 6... dxc4 {[%clk 0:03:00.2]} 7.
Nbd2 {[%clk 0:03:08.1]} 7... c3 {[%clk 0:02:59.8]} 8. bxc3 {[%clk 0:03:08.8]}
8... c5 {[%clk 0:03:01.4]} 9. Bb2 {[%clk 0:03:03.6]} 9... Nc6 {[%clk 0:03:00.5]}
10. h3 {[%clk 0:02:55.4]} 10... e5 {[%clk 0:02:58.4]} 11. Nxe5 {[%clk
0:02:39.6]} 11... Nxe5 {[%clk 0:02:55.5]} 12. dxe5 {[%clk 0:02:40.4]} 12... Nd7
{[%clk 0:02:56.4]} 13. f4 {[%clk 0:02:40.4]} 13... Qb6 {[%clk 0:02:55.1]} 14.
Nc4 {[%clk 0:02:32.9]} 14... Qa6 {[%clk 0:02:54.3]} 15. Nd6 {[%clk 0:02:30.5]}
15... Nxe5 {[%clk 0:02:40.2]} 16. fxe5 {[%clk 0:02:21.3]} 16... Bxe5 {[%clk
0:02:42.1]} 17. Nxf7 {[%clk 0:01:52.3]} 17... Rxf7 {[%clk 0:02:27.3]} 18. Qd8+
{[%clk 0:01:50.6]} 18... Kg7 {[%clk 0:02:23.4]} 19. Rxf7+ {[%clk 0:01:51.2]}
19... Kxf7 {[%clk 0:02:24.2]} 20. Rf1+ {[%clk 0:01:51.6]} 20... Bf5 {[%clk
0:02:21.4]} 21. Qxa8 {[%clk 0:01:40.3]} 21... Qxe2 {[%clk 0:02:20.7]} 22. Qxb7+
{[%clk 0:01:40.3]} 22... Kf8 {[%clk 0:02:19.7]} 23. Bc1 {[%clk 0:01:11.7]} 23...
Bxg3 {[%clk 0:02:15.3]} 24. Bh6+ {[%clk 0:01:11.4]} 24... Ke8 {[%clk 0:02:14.2]}
25. Bc6+ {[%clk 0:01:12.4]} 25... Kd8 {[%clk 0:02:12.7]} 26. Bg5+ {[%clk
0:01:13.3]} 1-0

[Event "*** Qualifier 4: Titled Tuesday 3|2 Blitz"]
[Site "Chess.com"]
[Date "2017.04.25"]
[Round "5"]
[White "Bugcrusher"]
[Black "theprosecution1"]
[Result "0-1"]
[WhiteElo "2477"]
[BlackElo "2612"]
[TimeControl "180+2"]
[EndTime "14:00:41 PDT"]
[Termination "theprosecution1 won by resignation"]

1. d4 {[%clk 0:03:02]} 1... Nf6 {[%clk 0:02:57.5]} 2. c4 {[%clk 0:03:02.5]} 2...
e6 {[%clk 0:02:59]} 3. Nc3 {[%clk 0:03:02.6]} 3... Bb4 {[%clk 0:02:59.4]} 4. a3
{[%clk 0:03:03.9]} 4... Bxc3+ {[%clk 0:02:59.9]} 5. bxc3 {[%clk 0:03:05.8]} 5...
c5 {[%clk 0:03:01.8]} 6. e3 {[%clk 0:03:06.1]} 6... Nc6 {[%clk 0:02:56.9]} 7.
Bd3 {[%clk 0:03:06.3]} 7... O-O {[%clk 0:02:56.6]} 8. Ne2 {[%clk 0:03:07.2]}
8... b6 {[%clk 0:02:58]} 9. e4 {[%clk 0:03:05.3]} 9... Ne8 {[%clk 0:02:59]} 10.
O-O {[%clk 0:03:05.6]} 10... Ba6 {[%clk 0:02:59.7]} 11. f4 {[%clk 0:03:01.1]}
11... f5 {[%clk 0:03:00.1]} 12. d5 {[%clk 0:01:37.2]} 12... exd5 {[%clk
0:02:50.4]} 13. cxd5 {[%clk 0:01:29]} 13... Bxd3 {[%clk 0:02:52.3]} 14. Qxd3
{[%clk 0:01:29.5]} 14... fxe4 {[%clk 0:02:53.6]} 15. Qxe4 {[%clk 0:01:30.2]}
15... Nd6 {[%clk 0:02:55]} 16. Qd3 {[%clk 0:01:25.9]} 16... Na5 {[%clk
0:02:55.7]} 17. Ng3 {[%clk 0:01:14.1]} 17... Qf6 {[%clk 0:02:54.5]} 18. f5
{[%clk 0:01:04.1]} 18... Nb3 {[%clk 0:02:51.7]} 19. Rb1 {[%clk 0:01:03]} 19...
c4 {[%clk 0:02:52.9]} 20. Qf3 {[%clk 0:00:57.1]} 20... Rae8 {[%clk 0:02:54.2]}
21. Qg4 {[%clk 0:00:34]} 21... Nxc1 {[%clk 0:02:24.8]} 22. Rbxc1 {[%clk
0:00:33]} 22... Rf7 {[%clk 0:02:26.3]} 23. Nh5 {[%clk 0:00:26.9]} 23... Qe5
{[%clk 0:02:27.5]} 24. f6 {[%clk 0:00:23.5]} 24... g6 {[%clk 0:02:28.4]} 25. Ng7
{[%clk 0:00:20.1]} 25... Ref8 {[%clk 0:02:22.8]} 26. Rcd1 {[%clk 0:00:16.6]}
26... Rxf6 {[%clk 0:02:20.2]} 27. Qxd7 {[%clk 0:00:13.2]} 27... Qe3+ {[%clk
0:02:19]} 0-1